bitfinex/quotes_BTCUSD_20251110
["timestamp","ask_amount","ask_price","bid_price","bid_amount"]
[1762738199363,0.32818238,106080.0,106070.0,0.37093827]
[1762738199847,0.32818238,106080.0,106070.0,0.34283827]
[1762738200298,0.6283052,106080.0,106070.0,4.827e-05]
[1762738200551,0.32865372,106080.0,106070.0,0.04730827]
[1762738200790,0.64691822,106080.0,106070.0,0.00404827]
[1762738201142,2.71918955,106080.0,106040.0,0.00016833]
[1762738201348,0.54992125,106050.0,106040.0,0.0003132]
[1762738201529,0.66357272,106050.0,106040.0,0.0003132]
[1762738201733,0.3634499,106050.0,106040.0,0.00265184]
[1762738201960,0.66357272,106050.0,106040.0,0.00265184]
[1762738202166,0.36392094,106050.0,106040.0,0.00265184]
[1762738202410,0.17485962,106050.0,106040.0,0.21764991]
[1762738202574,0.3634499,106050.0,106040.0,0.02904184]
[1762738202779,0.17485962,106050.0,106040.0,0.02904184]
[1762738202963,0.09839043,106050.0,106040.0,0.03704184]
[1762738203164,0.28698071,106050.0,106040.0,0.03704184]
[1762738204865,0.09839043,106050.0,106040.0,0.26620991]
[1762738205301,0.28698071,106050.0,106040.0,0.07760184]
[1762738205497,0.33458332,106050.0,106040.0,0.01065184]
[1762738205753,0.06220815,106050.0,106040.0,0.26620991]
[1762738205956,0.06220815,106050.0,106040.0,0.27620991]
[1762738206153,0.25079843,106050.0,106040.0,0.08760184]
[1762738206357,0.06220815,106050.0,106040.0,0.26620991]
[1762738207776,0.001,106050.0,106040.0,0.58920991]
[1762738207931,0.001,106050.0,106040.0,0.59920991]
[1762738209817,0.001,106050.0,106040.0,0.99743446]
[1762738210035,0.001,106050.0,106040.0,1.01262324]
[1762738210514,0.25964372,106080.0,106060.0,0.18856058]
[1762738210830,0.30402968,106080.0,106070.0,0.04726]
[1762738210947,0.30355834,106080.0,106070.0,0.04726]
[1762738211159,0.35285992,106080.0,106070.0,0.27637472]
[1762738211378,0.16432297,106080.0,106070.0,0.27637472]
[1762738211608,0.35385992,106080.0,106070.0,0.27637472]
[1762738211827,0.35385992,106080.0,106070.0,0.08782]
[1762738212057,0.3035579,106080.0,106070.0,0.27637472]
[1762738212248,0.09739043,106080.0,106070.0,0.27637472]
[1762738212399,0.10139043,106080.0,106070.0,0.27737472]
[1762738212655,0.09739043,106080.0,106070.0,0.27637472]
[1762738213002,0.09939043,106080.0,106070.0,0.27737472]
[1762738213443,0.10239043,106080.0,106070.0,0.27737472]
[1762738213655,0.31976547,106080.0,106070.0,0.27737472]
[1762738213907,0.10239043,106080.0,106070.0,0.27737472]
[1762738214108,0.09939043,106080.0,106070.0,0.27737472]
[1762738214340,0.003,106080.0,106070.0,0.27737472]
[1762738214802,0.003,106080.0,106070.0,0.61037472]
[1762738215734,0.001,106080.0,106070.0,0.60937472]
[1762738215986,0.001,106080.0,106070.0,0.61101132]
[1762738216251,0.002,106080.0,106070.0,0.61201132]
[1762738216508,0.001,106080.0,106070.0,0.61201132]
[1762738217270,0.001,106080.0,106070.0,1.08843727]
[1762738217978,0.001,106080.0,106070.0,0.57145132]
[1762738218202,0.001,106080.0,106070.0,0.4234566]
[1762738218391,0.06120815,106080.0,106070.0,0.4264566]
[1762738218597,0.27331221,106080.0,106070.0,0.4164566]
[1762738218893,0.29692824,106080.0,106070.0,0.60701132]
[1762738219119,0.10839129,106080.0,106070.0,0.60701132]
[1762738219315,0.08577526,106080.0,106070.0,0.60701132]
[1762738219519,0.06220815,106080.0,106070.0,0.60301132]
[1762738219732,0.22470306,106090.0,106070.0,0.60101132]
[1762738219946,0.22470306,106090.0,106070.0,0.60337472]
[1762738220142,0.22470306,106090.0,106080.0,0.00140267]
[1762738220354,0.30314643,106090.0,106080.0,0.00140267]
[1762738220563,0.30314643,106090.0,106080.0,0.02779267]
[1762738221099,0.11462565,106090.0,106080.0,0.06835267]
[1762738221286,0.03618228,106090.0,106080.0,0.25688962]
[1762738221729,0.22670146,106090.0,106080.0,0.06935267]
[1762738222544,0.03818228,106090.0,106080.0,0.25788962]
[1762738222669,0.03818228,106090.0,106080.0,0.25988962]
[1762738223725,0.002,106090.0,106080.0,0.58288962]
[1762738223929,0.002,106090.0,106080.0,0.59288962]
[1762738227337,0.22670146,106090.0,106080.0,0.35379267]
[1762738227577,0.22670146,106090.0,106080.0,0.32740267]
[1762738227780,0.22670146,106090.0,106080.0,0.00440267]
[1762738227993,0.52682428,106090.0,106080.0,0.00440267]
[1762738228192,0.6045264,106090.0,106080.0,0.00440267]
[1762738228830,0.62214624,106090.0,106080.0,0.00440267]
[1762738230967,0.73706331,106090.0,106080.0,0.00440267]
[1762738231149,0.32249471,106090.0,106080.0,0.00440267]
[1762738231974,0.7375346,106090.0,106080.0,0.00440267]
[1762738233851,0.73706331,106090.0,106080.0,0.00440267]
[1762738234502,0.7375346,106090.0,106080.0,0.00440267]
[1762738234904,0.24479259,106090.0,106080.0,0.00440267]
[1762738235115,0.24479259,106090.0,106080.0,0.03017267]
[1762738235452,0.03865357,106090.0,106080.0,0.21870962]
[1762738235657,0.002,106090.0,106080.0,0.25793962]
[1762738236047,0.19051918,106090.0,106080.0,0.06940267]
[1762738236214,0.27077307,106090.0,106080.0,0.06940267]
[1762738236422,0.04607161,106090.0,106080.0,0.25793962]
[1762738236833,0.08225389,106090.0,106080.0,0.25793962]
[1762738237038,0.27077307,106090.0,106080.0,0.25765539]
[1762738237238,0.08225389,106090.0,106080.0,0.25765539]
[1762738238579,0.002,106090.0,106080.0,0.25765539]
[1762738239093,0.19051918,106090.0,106080.0,0.06911844]
[1762738239343,0.19051918,106090.0,106080.0,0.25765539]
[1762738239542,0.19051918,106090.0,106080.0,0.06911844]
[1762738240235,0.21408407,106090.0,106080.0,0.02988844]
[1762738240456,0.29669445,106090.0,106080.0,0.02988844]
[1762738240659,0.27312956,106090.0,106080.0,0.00411844]
[1762738240867,0.70581058,106090.0,106080.0,0.00411844]
[1762738241579,0.70628187,106090.0,106080.0,0.00411844]
[1762738250771,0.70581058,106090.0,106080.0,0.00411844]
[1762738250975,0.70628187,106090.0,106080.0,0.00411844]
[1762738252500,0.72659514,106090.0,106080.0,0.00411844]
[1762738253030,0.72459514,106090.0,106080.0,0.00311844]
[1762738253446,0.72559514,106090.0,106080.0,0.00411844]
[1762738253650,0.72459514,106090.0,106080.0,0.00311844]
[1762738253854,0.72459514,106090.0,106080.0,0.00111844]
[1762738254101,0.72759514,106090.0,106080.0,0.00211844]
[1762738254451,0.72712385,106090.0,106080.0,0.00411844]
[1762738254656,0.73759514,106090.0,106080.0,0.00411844]
[1762738254945,2.73759514,106090.0,106080.0,0.00211844]
[1762738255148,1.42119514,106090.0,106080.0,0.00211844]
[1762738255368,1.19339514,106090.0,106080.0,0.00211844]
[1762738255552,1.56056867,106090.0,106080.0,1e-08]
[1762738255768,1.57868233,106090.0,106080.0,1e-08]
[1762738255907,1.57868233,106090.0,106040.0,0.00016833]
[1762738255908,0.18859028,106050.0,106040.0,0.00016833]
[1762738256128,0.72861463,106050.0,106040.0,0.0003132]
[1762738256328,0.70617283,106050.0,106040.0,0.0003132]
[1762738256510,0.70664387,106050.0,106040.0,0.0003132]
[1762738257774,0.29260398,106050.0,106040.0,0.0013132]
[1762738257919,0.29260398,106050.0,106040.0,0.0033132]
[1762738259172,0.74382615,106050.0,106040.0,0.0033132]
[1762738260224,0.7614383,106050.0,106040.0,0.0033132]
[1762738260448,0.7714383,106050.0,106040.0,0.0033132]
[1762738260668,2.78143829,106050.0,106040.0,0.0033132]
[1762738260891,1.21904802,106050.0,106040.0,0.0033132]
[1762738261115,0.10354266,106050.0,106040.0,0.18992127]
[1762738261371,0.12711644,106050.0,106040.0,0.18992127]
[1762738261594,0.10454266,106050.0,106040.0,0.190857]
[1762738262045,0.10354266,106050.0,106040.0,0.190857]
[1762738262262,0.06167953,106070.0,106060.0,0.1885725]
[1762738262470,0.06120815,106070.0,106060.0,0.2138825]
[1762738263119,0.06120815,106070.0,106060.0,0.2504925]
[1762738263554,0.0673761,106070.0,106050.0,0.24375426]
[1762738263772,0.25793082,106070.0,106060.0,0.001]
[1762738264206,0.29458448,106070.0,106060.0,0.001]
[1762738265275,0.29258448,106070.0,106060.0,0.1885725]
[1762738265479,0.22475478,106060.0,106050.0,0.20715871]
[1762738265679,0.27282334,106060.0,106050.0,0.20815871]
[1762738265819,0.27282334,106060.0,106050.0,0.20715871]
[1762738266300,0.27282334,106060.0,106050.0,0.01857]
[1762738266503,0.27282334,106060.0,106040.0,0.19835167]
[1762738266708,0.08425084,106060.0,106050.0,0.18859028]
[1762738266910,0.2973949,106060.0,106050.0,0.18959028]
[1762738267114,0.27382334,106060.0,106050.0,0.001]
[1762738267317,0.08525084,106060.0,106050.0,0.21016028]
[1762738267541,0.2973949,106060.0,106050.0,0.02157]
[1762738267691,0.27382334,106060.0,106050.0,0.003]
[1762738268103,0.27382334,106060.0,106050.0,0.00370174]
[1762738269015,0.29190327,106060.0,106050.0,0.00370174]
[1762738269223,0.70694316,106060.0,106050.0,0.00370174]
[1762738270337,0.29190327,106060.0,106050.0,0.00370174]
[1762738270929,0.27429477,106060.0,106050.0,0.00370174]
[1762738271126,0.27382334,106060.0,106050.0,0.00370174]
[1762738271409,0.29191132,106060.0,106050.0,0.00370174]
[1762738271612,0.70695121,106060.0,106050.0,0.00370174]
[1762738271988,0.74943121,106060.0,106050.0,0.00370174]
[1762738272331,3.12152222,106060.0,106050.0,0.00370174]
[1762738272757,3.15011313,106060.0,106050.0,0.00370174]
[1762738272961,3.16922679,106060.0,106050.0,0.00170174]
[1762738273364,3.16922679,106060.0,106050.0,0.00070174]
[1762738273798,3.14911313,106060.0,106050.0,0.00070174]
[1762738274051,3.17311313,106060.0,106050.0,0.00270174]
[1762738274726,3.18911313,106060.0,106050.0,0.00270174]
[1762738275078,3.20822679,106060.0,106050.0,0.00270174]
[1762738275678,3.18911225,106060.0,106050.0,0.00270174]
[1762738276300,0.56777255,106050.0,106040.0,0.0003132]
[1762738276498,3.14449237,106050.0,106040.0,0.0003132]
[1762738276703,3.17477474,106050.0,106040.0,0.0003132]
[1762738276910,3.17430327,106050.0,106040.0,0.0003132]
[1762738277089,1.55617474,106050.0,106040.0,0.0003132]
[1762738277290,1.53589236,106050.0,106040.0,0.0003132]
[1762738277515,1.55189236,106050.0,106040.0,0.0023132]
[1762738278112,1.56289236,106050.0,106040.0,0.0023132]
[1762738279184,1.18102089,106050.0,106040.0,0.0023132]
[1762738279341,1.22397236,106050.0,106040.0,0.0023132]
[1762738279541,1.21397237,106050.0,106040.0,0.0023132]
[1762738279751,1.22397236,106050.0,106040.0,0.0023132]
[1762738280241,0.80893247,106050.0,106040.0,0.0023132]
[1762738280398,1.22397236,106050.0,106040.0,0.0023132]
[1762738281948,1.22397236,106050.0,106040.0,0.00254716]
[1762738283503,1.24425564,106050.0,106040.0,0.00254716]
[1762738284105,1.50135901,106050.0,106040.0,0.00254716]
[1762738284720,1.24425564,106050.0,106040.0,0.00254716]
[1762738284941,1.23425565,106050.0,106040.0,0.00254716]
[1762738285146,0.82921575,106050.0,106040.0,0.00254716]
[1762738285354,1.24425564,106050.0,106040.0,0.00254716]
[1762738286613,0.82921575,106050.0,106040.0,0.00254716]
[1762738286819,1.24425564,106050.0,106040.0,0.00254716]
[1762738287430,1.22397236,106050.0,106040.0,0.00254716]
[1762738287638,1.24425166,106050.0,106040.0,0.00254716]
[1762738287972,3.24425166,106050.0,106040.0,0.00254716]
[1762738288180,0.23479035,106040.0,106030.0,0.0002]
[1762738288384,0.23479035,106040.0,106030.0,0.00068072]
[1762738288385,0.71434641,106040.0,106030.0,0.00068072]
[1762738289226,0.71734641,106040.0,106030.0,0.00068072]
[1762738289592,0.30230652,106040.0,106030.0,0.00068072]
[1762738290091,0.72034641,106040.0,106030.0,0.00068072]
[1762738290493,0.30530652,106040.0,106030.0,0.00068072]
[1762738290699,0.72034641,106040.0,106030.0,0.00068072]
[1762738292731,0.64984803,106030.0,106020.0,0.0002]
[1762738292976,0.71179521,106030.0,106020.0,0.0002]
[1762738293954,1.03479521,106030.0,106020.0,0.0002]
[1762738294268,1.0580717,106030.0,106020.0,0.00166801]
[1762738294478,1.0610717,106030.0,106020.0,0.00166801]
[1762738296073,0.5253195,106020.0,106010.0,0.0002]
[1762738296212,0.63579074,106020.0,106010.0,0.0002]
[1762738296645,0.65606688,106020.0,106010.0,0.0002]
[1762738297267,0.68206688,106020.0,106010.0,0.0022]
[1762738297470,0.69306688,106020.0,106010.0,0.0022]
[1762738298428,0.70259239,106020.0,106010.0,0.0022]
[1762738298622,0.69306688,106020.0,106010.0,0.0022]
[1762738298832,1.04518053,106020.0,106010.0,1e-08]
[1762738299046,3.02606687,106020.0,106010.0,1e-08]
[1762738299249,3.02606687,106020.0,106000.0,9.42367289]
[1762738299250,1.95304372,106010.0,106000.0,9.42367289]
[1762738299497,2.39033807,106010.0,106000.0,9.29532588]
[1762738300713,2.40633807,106010.0,106000.0,9.29532588]
[1762738301125,2.44845173,106010.0,106000.0,9.29732588]
[1762738301331,1.5615445,106010.0,106000.0,9.29732588]
[1762738301524,1.07575808,106010.0,106000.0,9.29732588]
[1762738301726,1.07534623,106010.0,106000.0,9.29732588]
[1762738301943,1.09534622,106010.0,106000.0,9.29779404]
[1762738302230,3.11441988,106010.0,106000.0,9.1044922]
[1762738302469,3.09530622,106010.0,106000.0,9.1044922]
[1762738302691,3.05286622,106010.0,106000.0,9.1044922]
[1762738302916,1.09530622,106010.0,106000.0,9.1044922]
[1762738303340,3.09530622,106010.0,106000.0,9.1044922]
[1762738304268,3.11441988,106010.0,106000.0,9.1044922]
[1762738304391,3.09530622,106010.0,106000.0,9.1044922]
[1762738305642,2.12263652,106010.0,106000.0,9.1044922]
[1762738305798,1.07503008,106010.0,106000.0,9.1044922]
[1762738306005,1.06503008,106010.0,106000.0,9.1044922]
[1762738306275,1.06503009,106010.0,106000.0,9.1044922]
[1762738306501,1.05503009,106010.0,106000.0,9.1044922]
[1762738306698,1.06503009,106010.0,106000.0,9.1044922]
[1762738306886,1.05503009,106010.0,106000.0,9.1044922]
[1762738307092,1.01884781,106010.0,106000.0,9.1044922]
[1762738307295,0.67591424,106010.0,106000.0,9.1044922]
[1762738307497,0.71835424,106010.0,106000.0,9.1044922]
[1762738307717,0.75453652,106010.0,106000.0,9.1044922]
[1762738308283,1.05503009,106010.0,106000.0,9.1044922]
[1762738308893,1.03903009,106010.0,106000.0,9.1044922]
[1762738309094,1.04903008,106010.0,106000.0,9.1044922]
[1762738309354,1.03803008,106010.0,106000.0,9.1024922]
[1762738309502,1.02803009,106010.0,106000.0,9.1024922]
[1762738309703,1.0409908,106010.0,106000.0,9.1044922]
[1762738309910,1.06099079,106010.0,106000.0,9.1044922]
[1762738310934,1.0509908,106010.0,106000.0,9.1044922]
[1762738313257,0.75049723,106010.0,106000.0,9.1044922]
[1762738313568,1.0409908,106010.0,106000.0,9.1044922]
[1762738313710,0.9985508,106010.0,106000.0,9.1044922]
[1762738313910,1.0409908,106010.0,106000.0,9.1044922]
[1762738314114,0.41749723,106010.0,106000.0,9.1044922]
[1762738314315,0.33887495,106010.0,106000.0,9.1044922]
[1762738314953,0.37505723,106010.0,106000.0,9.1044922]
[1762738315127,0.29244685,106010.0,106000.0,9.1044922]
[1762738315327,0.29244685,106010.0,106000.0,9.1301522]
[1762738315758,0.32862913,106010.0,106000.0,9.1301522]
[1762738315918,0.32862913,106010.0,106000.0,9.1044922]
[1762738316118,0.30362913,106010.0,106000.0,9.1024922]
[1762738316425,0.71463771,106010.0,106000.0,9.1054922]
[1762738316821,0.73507771,106010.0,106000.0,9.1024922]
[1762738317028,0.39314414,106010.0,106000.0,9.1034922]
[1762738317233,0.39414414,106010.0,106000.0,9.1094922]
[1762738318097,0.69463771,106010.0,106000.0,9.1094922]
[1762738318284,0.69363771,106010.0,106000.0,9.1084922]
[1762738318484,0.39314414,106010.0,106000.0,9.1084922]
[1762738318684,0.69663771,106010.0,106000.0,9.1094922]
[1762738318859,0.69663771,106010.0,106000.0,9.1034922]
[1762738318860,0.71590879,106010.0,106000.0,9.1034922]
[1762738319064,0.43758414,106010.0,106000.0,9.1034922]
[1762738319700,0.43858414,106010.0,106000.0,9.1064922]
[1762738319938,0.43558414,106010.0,106000.0,9.1054922]
[1762738320435,0.43558414,106010.0,106000.0,9.1034922]
[1762738320436,0.44758414,106010.0,106000.0,9.1034922]
[1762738320576,0.46158414,106010.0,106000.0,9.1054922]
[1762738320783,0.78235921,106010.0,106000.0,9.1054922]
[1762738320985,1.10535921,106010.0,106000.0,9.1054922]
[1762738321190,3.03684419,106010.0,106000.0,8.11606154]
[1762738321704,2.33374419,106010.0,106000.0,7.80735427]
[1762738321900,1.63034419,106010.0,106000.0,7.80735427]
[1762738322142,1.63034419,106010.0,106000.0,7.47836903]
[1762738322343,1.61634419,106010.0,106000.0,7.47636903]
[1762738322571,1.61634419,106010.0,106000.0,7.0465119]
[1762738322703,1.61634419,106010.0,106000.0,6.86128459]
[1762738322704,1.62634419,106010.0,106000.0,6.86128459]
[1762738322905,1.62634419,106010.0,106000.0,6.67209489]
[1762738322906,1.64545785,106010.0,106000.0,6.67209489]
[1762738323344,1.62634419,106010.0,106000.0,6.03949706]
[1762738323547,1.64234419,106010.0,106000.0,6.04049706]
[1762738324410,0.32672835,106010.0,106000.0,6.04049706]
[1762738324597,0.13806691,106010.0,106000.0,6.04049706]
[1762738324805,0.30644685,106010.0,106000.0,6.06718706]
[1762738324934,0.33911791,106010.0,106000.0,6.04049706]
[1762738325495,0.33911791,106010.0,106000.0,6.03849706]
[1762738325496,0.30011791,106010.0,106000.0,6.03849706]
[1762738325711,0.63961148,106010.0,106000.0,6.03949706]
[1762738325911,0.65979376,106010.0,106000.0,6.03949706]
[1762738326129,0.67923376,106010.0,106000.0,6.03849706]
[1762738326334,0.68023376,106010.0,106000.0,6.03849706]
[1762738326476,0.70253557,106010.0,106000.0,6.04549706]
[1762738326944,0.70053557,106010.0,106000.0,6.03849706]
[1762738327096,0.67923376,106010.0,106000.0,6.03849706]
[1762738327306,0.68223376,106010.0,106000.0,6.04349706]
[1762738327507,0.70253433,106010.0,106000.0,6.04349706]
[1762738329217,0.68223376,106010.0,106000.0,6.04349706]
[1762738330020,0.38174019,106010.0,106000.0,6.04349706]
[1762738330997,0.70253373,106010.0,106000.0,6.04349706]
[1762738331966,1.02553373,106010.0,106000.0,6.04349706]
[1762738332138,0.72504016,106010.0,106000.0,6.04349706]
[1762738332472,1.02553373,106010.0,106000.0,6.04349706]
[1762738333854,1.02553373,106010.0,106000.0,6.01349706]
[1762738335046,3.07088285,106010.0,106000.0,6.01349706]
[1762738335245,2.96268285,106010.0,106000.0,6.01349706]
[1762738335665,2.95968285,106010.0,106000.0,6.00849706]
[1762738335865,1.04253372,106010.0,106000.0,6.00849706]
[1762738336066,1.23443372,106010.0,106000.0,6.00949706]
[1762738336741,1.18173372,106010.0,106000.0,6.00949706]
[1762738336956,1.08153372,106010.0,106000.0,6.00949706]
[1762738337970,1.07153373,106010.0,106000.0,6.00949706]
[1762738338205,1.08153372,106010.0,106000.0,6.00949706]
[1762738338810,3.08153372,106010.0,106000.0,6.00949706]
[1762738339224,3.10688285,106010.0,106000.0,6.00949706]
[1762738340261,2.91878285,106010.0,106000.0,6.00949706]
[1762738340743,2.61918285,106010.0,106000.0,6.00949706]
[1762738340941,2.57418285,106010.0,106000.0,6.00949706]
[1762738341151,2.41438285,106010.0,106000.0,6.00949706]
[1762738341305,2.25353373,106010.0,106000.0,6.00949706]
[1762738341660,1.06153373,106010.0,106000.0,6.00949706]
[1762738341846,1.02535145,106010.0,106000.0,6.00949706]
[1762738342060,0.98291145,106010.0,106000.0,6.00949706]
[1762738342215,0.71860016,106010.0,106000.0,6.00949706]
[1762738342416,0.65991145,106010.0,106000.0,6.00949706]
[1762738342841,0.69609373,106010.0,106000.0,6.00949706]
[1762738344508,0.67579376,106010.0,106000.0,6.00949706]
[1762738344679,0.37530019,106010.0,106000.0,6.03618706]
[1762738344893,0.34262913,106010.0,106000.0,6.03618706]
[1762738345058,0.11778541,106010.0,106000.0,6.07496706]
[1762738345263,0.30644685,106010.0,106000.0,6.07496706]
[1762738345558,0.39213818,106010.0,106000.0,6.07496706]
[1762738346546,0.36913818,106010.0,106000.0,6.07396706]
[1762738346946,0.37013818,106010.0,106000.0,6.07996706]
[1762738347165,0.35413818,106010.0,106000.0,6.07996706]
[1762738347744,0.16647674,106010.0,106000.0,6.2686463]
[1762738347930,0.16647674,106010.0,106000.0,6.07996706]
[1762738348341,0.11696769,106010.0,106000.0,6.2686463]
[1762738348540,0.01957726,106010.0,106000.0,6.56913987]
[1762738348753,0.002,106010.0,106000.0,6.5916463]
[1762738349081,0.26951231,106010.0,106000.0,6.36418706]
[1762738349345,0.16498074,106010.0,106000.0,6.36418706]
[1762738349576,0.002,106010.0,106000.0,6.90560987]
[1762738350027,0.0004814,106030.0,106020.0,0.51164365]
[1762738350149,0.01812512,106030.0,106020.0,0.57575365]
[1762738350357,0.0004814,106030.0,106020.0,0.62800365]
[1762738350782,0.01811438,106030.0,106020.0,0.62800365]
[1762738351187,0.0024814,106030.0,106020.0,0.62900365]
[1762738351384,0.0004814,106030.0,106020.0,0.62800365]
[1762738351646,0.0004814,106030.0,106020.0,0.92849722]
[1762738351852,0.0014814,106030.0,106020.0,0.92949722]
[1762738352243,0.0014814,106030.0,106020.0,1.13949722]
[1762738352781,0.0024814,106030.0,106020.0,1.14649722]
[1762738353032,0.0024814,106030.0,106020.0,1.26105539]
[1762738353237,0.0024814,106030.0,106020.0,0.84770413]
[1762738353238,0.0014814,106030.0,106020.0,0.84770413]
[1762738353455,0.0004814,106030.0,106020.0,1.46175587]
[1762738353660,0.0820418,106070.0,106060.0,0.2526825]
[1762738353866,0.13582122,106070.0,106060.0,0.6279325]
[1762738354528,0.32437594,106070.0,106060.0,0.43936]
[1762738354721,0.13582122,106070.0,106060.0,0.43936]
[1762738354920,0.18025709,106070.0,106060.0,0.6289325]
[1762738355350,0.18025709,106070.0,106060.0,0.44036]
[1762738355672,0.40056178,106070.0,106060.0,0.44236]
[1762738355877,0.38281181,106070.0,106060.0,0.44236]
[1762738356082,0.38281181,106070.0,106060.0,0.11936]
[1762738356286,0.34852522,106070.0,106060.0,0.11736]
[1762738356489,0.33652522,106070.0,106060.0,0.11636]
[1762738356689,0.33752522,106070.0,106060.0,0.11936]
[1762738356845,0.33952522,106070.0,106060.0,0.12036]
[1762738357466,0.33952522,106070.0,106060.0,0.06811]
[1762738357678,0.35975945,106070.0,106060.0,0.12036]
[1762738358134,0.33952522,106070.0,106060.0,0.12036]
[1762738358325,0.1509705,106070.0,106060.0,0.3089325]
[1762738359279,0.33952522,106070.0,106060.0,0.12036]
[1762738359486,0.1509705,106070.0,106060.0,0.3089325]
[1762738359939,0.35820931,106070.0,106060.0,0.12036]
[1762738360142,0.35820931,106070.0,106050.0,0.46826271]
[1762738360143,0.03618228,106060.0,106050.0,0.46826271]
[1762738360366,0.05377942,106060.0,106050.0,0.46826271]
[1762738360565,0.05377942,106060.0,106050.0,0.53237271]
[1762738361311,0.01759714,106060.0,106050.0,0.53237271]
[1762738361510,0.01859714,106060.0,106050.0,0.53337271]
[1762738361930,0.01859714,106060.0,106050.0,0.53737271]
[1762738362133,0.01959714,106060.0,106050.0,0.58962271]
[1762738362936,0.01959714,106060.0,106050.0,1.00467445]
[1762738363248,0.01959714,106060.0,106050.0,1.0314708]
[1762738363451,0.01959714,106060.0,106050.0,0.61641906]
[1762738364089,0.01959714,106060.0,106050.0,0.65974663]
[1762738364290,0.04056898,106060.0,106050.0,0.64974663]
[1762738364438,0.10177713,106060.0,106050.0,0.64974663]
[1762738364888,0.03328188,106110.0,106080.0,0.22445695]
[1762738365088,0.03408558,106130.0,106110.0,0.51148364]
[1762738365292,0.05133588,106140.0,106130.0,0.18844812]
[1762738365293,0.0004,106140.0,106130.0,0.18844812]
[1762738365500,0.0004,106140.0,106130.0,0.32285618]
[1762738365748,0.0004,106140.0,106130.0,0.34981618]
[1762738365961,0.0004,106140.0,106130.0,0.25171445]
[1762738366200,0.0004,106140.0,106130.0,0.25471445]
[1762738366402,0.0004,106140.0,106130.0,0.99276619]
[1762738366610,0.0004,106160.0,106130.0,1.00218859]
[1762738366814,0.0008831,106160.0,106150.0,0.55133262]
[1762738367263,0.0008831,106160.0,106150.0,1.00334436]
[1762738367800,0.0008831,106160.0,106150.0,0.58829262]
[1762738368446,0.0028831,106160.0,106150.0,0.58229262]
[1762738368662,0.0038831,106160.0,106150.0,0.58329262]
[1762738368878,0.0038831,106160.0,106150.0,0.68139435]
[1762738372806,0.0038831,106160.0,106150.0,0.48298173]
[1762738373007,0.0038831,106160.0,106150.0,0.67139435]
[1762738373259,0.19438088,106160.0,106150.0,0.38488]
[1762738373474,0.0004,106180.0,106170.0,0.18837713]
[1762738373672,0.00054484,106180.0,106170.0,0.54132713]
[1762738373880,0.00054484,106180.0,106170.0,0.69181886]
[1762738374085,0.00101187,106180.0,106170.0,0.69181886]
[1762738374838,0.00101187,106180.0,106170.0,0.70228028]
[1762738375104,0.00301187,106180.0,106170.0,0.70228028]
[1762738375396,0.00301187,106180.0,106170.0,0.69281886]
[1762738375547,0.00401187,106180.0,106170.0,0.69381886]
[1762738376194,0.00401187,106180.0,106170.0,0.50544173]
[1762738376494,0.00401187,106180.0,106170.0,0.69381886]
[1762738376841,0.02149152,106180.0,106170.0,0.69381886]
[1762738377042,0.03023134,106180.0,106170.0,0.69381886]
[1762738377592,0.01275169,106180.0,106170.0,0.70324154]
[1762738377936,0.01275169,106180.0,106170.0,0.51486441]
[1762738378178,0.00401187,106180.0,106170.0,0.51486441]
[1762738378553,0.27712432,106180.0,106170.0,0.38735]
[1762738378754,0.27712432,106180.0,106170.0,0.002]
[1762738378755,0.32827168,106180.0,106170.0,0.002]
[1762738378956,0.81173431,106180.0,106170.0,0.002]
[1762738379193,0.23401553,106150.0,106120.0,0.01846]
[1762738379367,0.21199977,106140.0,106130.0,0.01846]
[1762738379574,0.24095977,106140.0,106130.0,0.01846]
[1762738379825,0.21740598,106140.0,106130.0,0.01846]
[1762738380579,0.25770598,106140.0,106130.0,0.0199431]
[1762738381307,0.003,106140.0,106130.0,0.27039579]
[1762738381508,0.003,106140.0,106130.0,1.00844753]
[1762738381708,0.005,106140.0,106130.0,1.03391295]
[1762738382309,0.003,106140.0,106130.0,1.03291295]
[1762738382676,0.21198177,106150.0,106130.0,0.05286852]
[1762738382946,0.06120815,106140.0,106130.0,0.0384031]
[1762738383148,0.25063852,106140.0,106130.0,0.0209431]
[1762738383351,0.39760639,106140.0,106130.0,0.0024831]
[1762738383722,0.43378867,106140.0,106130.0,0.0014831]
[1762738384164,0.43378867,106140.0,106130.0,0.0024831]
[1762738384527,0.43378867,106140.0,106130.0,0.0014831]
[1762738384528,0.03718228,106140.0,106130.0,0.0014831]
[1762738384728,0.30675076,106140.0,106130.0,0.0014831]
[1762738384944,0.2878208,106140.0,106130.0,0.0024831]
[1762738385129,0.3251208,106140.0,106130.0,0.0024831]
[1762738385325,0.3822708,106140.0,106130.0,0.0024831]
[1762738385981,0.2878208,106140.0,106130.0,0.0024831]
[1762738386324,0.3822708,106140.0,106130.0,0.0024831]
[1762738387776,0.3812708,106140.0,106130.0,0.0014831]
[1762738388173,0.3972708,106140.0,106130.0,0.0034831]
[1762738388386,0.41479616,106140.0,106130.0,0.0034831]
[1762738388586,0.41379616,106140.0,106130.0,0.0024831]
[1762738389008,0.42579616,106140.0,106130.0,0.0034831]
[1762738390389,0.89178378,106140.0,106130.0,0.0034831]
[1762738390710,0.89225485,106140.0,106130.0,0.0034831]
[1762738390927,0.89225348,106140.0,106130.0,0.0034831]
[1762738391131,0.47720174,106140.0,106130.0,0.0034831]
[1762738391715,0.47673067,106140.0,106130.0,0.0034831]
[1762738391883,0.36911586,106140.0,106130.0,0.0034831]
[1762738392085,0.46819479,106140.0,106130.0,0.0034831]
[1762738392449,2.46819479,106140.0,106130.0,0.0034831]
[1762738392649,2.94465347,106140.0,106130.0,0.0034831]
[1762738392852,0.52960173,106140.0,106130.0,0.0034831]
[1762738393051,0.48720173,106140.0,106130.0,0.0034831]
[1762738393273,0.52960173,106140.0,106130.0,0.0034831]
[1762738393651,0.51313066,106140.0,106130.0,0.0014831]
[1762738393853,2.9281824,106140.0,106130.0,0.0014831]
[1762738394092,3.27465347,106140.0,106130.0,0.0044831]
[1762738394295,3.2741824,106140.0,106130.0,0.0044831]
[1762738394473,3.27465347,106140.0,106130.0,0.0044831]
[1762738394675,3.26265347,106140.0,106130.0,0.0034831]
[1762738395055,3.27865347,106140.0,106130.0,0.0034831]
[1762738395541,3.2781824,106140.0,106130.0,0.0034831]
[1762738395734,3.27865347,106140.0,106130.0,0.0034831]
[1762738396580,0.18846588,106120.0,106110.0,0.00156424]
[1762738396780,0.43703074,106120.0,106110.0,0.00156424]
[1762738397025,0.47431925,106120.0,106110.0,0.00156424]
[1762738397582,0.47479041,106120.0,106110.0,0.00156424]
[1762738398099,0.47579041,106120.0,106110.0,0.00156424]
[1762738398968,0.43547918,106120.0,106110.0,0.00456424]
[1762738403261,0.18859028,106050.0,106040.0,0.0251472]
[1762738403427,0.58509035,106040.0,106020.0,0.0002]
[1762738403630,0.58509035,106040.0,106020.0,0.00034418]
[1762738403631,0.73651117,106030.0,106020.0,0.00034418]
[1762738403828,0.69874212,106030.0,106020.0,0.00034418]
[1762738404054,0.74142212,106030.0,106020.0,0.00034418]